fUST/lending_fUST_20250516
["ID","MTS","AMOUNT","RATE_DAILY","PERIOD"]
[361214240,1747347050139,-151.0,0.00013835,2]
[361214241,1747347050156,-151.0,0.00013835,2]
[361214242,1747347050166,-151.0,0.00013835,2]
[361214243,1747347050175,-151.0,0.00013835,2]
[361214244,1747347050185,-450.0,0.00013835,2]
[361214245,1747347050194,-450.0,0.00013835,2]
[361214246,1747347050204,-450.0,0.00013835,2]
[361214247,1747347050213,-450.0,0.00013835,2]
[361214248,1747347050222,-450.0,0.00013835,2]
[361214249,1747347050232,-450.0,0.00013835,2]
[361214250,1747347050241,-450.0,0.00013835,2]
[361214251,1747347050251,-450.0,0.00013835,2]
[361214252,1747347050260,-450.0,0.00013835,2]
[361214253,1747347050270,-450.0,0.00013835,2]
[361214254,1747347050279,-151.0,0.00013835,2]
[361214255,1747347050289,-151.0,0.00013835,2]
[361214256,1747347050299,-151.0,0.00013835,2]
[361214257,1747347050308,-151.0,0.00013835,2]
[361214258,1747347050317,-450.0,0.00013835,2]
[361214259,1747347050327,-526.82,0.00013835,2]
[361214260,1747347050336,-151.0,0.00013835,2]
[361214261,1747347050345,-151.0,0.00013835,2]
[361214262,1747347050355,-450.0,0.00013835,2]
[361214263,1747347050365,-450.0,0.00013835,2]
[361214264,1747347050374,-713.22,0.00013835,2]
[361214265,1747347050384,-450.0,0.00013835,2]
[361214266,1747347050393,-856.09,0.00013835,2]
[361214267,1747347050402,-450.0,0.00013835,2]
[361214268,1747347050412,-1027.94,0.00013835,2]
[361214269,1747347050422,-986.32,0.00013835,2]
[361214270,1747347050431,-450.0,0.00013835,2]
[361214271,1747347050441,-636.79,0.00013835,2]
[361214272,1747347050450,-450.0,0.00013835,2]
[361214273,1747347050459,-450.0,0.00013835,2]
[361214274,1747347050469,-450.0,0.00013835,2]
[361214275,1747347050478,-477.89,0.00013835,2]
[361214276,1747347050487,-450.0,0.00013835,2]
[361214277,1747347050497,-450.0,0.00013835,2]
[361214278,1747347050507,-450.0,0.00013835,2]
[361214279,1747347050516,-450.0,0.00013835,2]
[361214280,1747347050526,-450.0,0.00013835,2]
[361214281,1747347050535,-450.0,0.00013835,2]
[361214282,1747347050544,-450.0,0.00013835,2]
[361214283,1747347050553,-450.0,0.00013835,2]
[361214284,1747347050562,-450.0,0.00013835,2]
[361214285,1747347050572,-158.28930635,0.00013835,2]
[361214286,1747347050581,-450.0,0.00013835,2]
[361214287,1747347050590,-450.0,0.00013835,2]
[361214288,1747347050599,-938.97,0.00013835,2]
[361214289,1747347050608,-1176.16,0.00013835,2]
[361214290,1747347050618,-450.0,0.00013835,2]
[361214291,1747347050627,-535.3,0.00013835,2]
[361214292,1747347050636,-450.0,0.00013835,2]
[361214293,1747347050646,-450.0,0.00013835,2]
[361214294,1747347050655,-450.0,0.00013835,2]
[361214295,1747347050664,-530.14827395,0.00013835,2]
[361214296,1747347050673,-450.0,0.00013835,2]
[361214297,1747347050683,-857.19,0.00013835,2]
[361214298,1747347050692,-450.0,0.00013835,2]
[361214299,1747347050701,-450.0,0.00013835,2]
[361214300,1747347050711,-450.0,0.00013835,2]
[361214301,1747347050720,-791.9,0.00013835,2]
[361214302,1747347050730,-457.39076255,0.00013835,2]
[361214303,1747347050739,-450.0,0.00013835,2]
[361214304,1747347050748,-450.0,0.00013835,2]
[361214305,1747347050758,-450.0,0.00013835,2]
[361214306,1747347050767,-450.0,0.00013835,2]
[361214308,1747347050777,-450.0,0.00013835,2]
[361214309,1747347050787,-583.68,0.00013835,2]
[361214310,1747347050885,-472.85651514,0.00013835,2]
[361214311,1747347050895,-1359.62,0.00013835,2]
[361214312,1747347050904,-473.89,0.00013835,2]
[361214313,1747347050914,-703.28,0.00013835,2]
[361214314,1747347050923,-450.0,0.00013835,2]
[361214315,1747347050934,-450.0,0.00013835,2]
[361214316,1747347050944,-450.0,0.00013835,2]
[361214317,1747347050953,-450.0,0.00013835,2]
[361214318,1747347050963,-898.42,0.00013835,2]
[361214319,1747347050973,-450.0,0.00013835,2]
[361214320,1747347050983,-450.0,0.00013835,2]
[361214321,1747347050992,-450.0,0.00013835,2]
[361214322,1747347051002,-450.0,0.00013835,2]
[361214323,1747347051011,-450.0,0.00013835,2]
[361214324,1747347051021,-450.0,0.00013835,2]
[361214325,1747347051031,-450.0,0.00013835,2]
[361214326,1747347051040,-450.0,0.00013835,2]
[361214327,1747347051049,-450.0,0.00013835,2]
[361214328,1747347051058,-1316.39,0.00013835,2]
[361214329,1747347051067,-550.96,0.00013835,2]
[361214330,1747347051076,-450.0,0.00013835,2]
[361214331,1747347051085,-450.0,0.00013835,2]
[361214332,1747347051094,-450.0,0.00013835,2]
[361214333,1747347051104,-450.0,0.00013835,2]
[361214334,1747347051113,-450.0,0.00013835,2]
[361214335,1747347051123,-556.32,0.00013835,2]
[361214336,1747347051134,-458.66,0.00013835,2]
[361214337,1747347051143,-450.0,0.00013835,2]
[361214338,1747347051153,-450.0,0.00013835,2]
[361214339,1747347051162,-634.25,0.00013835,2]
[361214340,1747347051172,-450.0,0.00013835,2]
[361214341,1747347051182,-450.0,0.00013835,2]
[361214342,1747347051191,-450.0,0.00013835,2]
[361214343,1747347051201,-528.45,0.00013835,2]
[361214344,1747347051210,-450.0,0.00013835,2]
[361214345,1747347051219,-450.0,0.00013835,2]
[361214346,1747347051229,-450.0,0.00013835,2]
[361214347,1747347051238,-450.0,0.00013835,2]
[361214348,1747347051247,-450.0,0.00013835,2]
[361214349,1747347051257,-666.79,0.00013835,2]
[361214350,1747347051266,-450.0,0.00013835,2]
[361214351,1747347051275,-450.0,0.00013835,2]
[361214352,1747347051284,-450.0,0.00013835,2]
[361214353,1747347051293,-475.45,0.00013835,2]
[361214354,1747347051303,-450.0,0.00013835,2]
[361214355,1747347051311,-450.0,0.00013835,2]
[361214356,1747347051321,-450.0,0.00013835,2]
[361214357,1747347051330,-450.0,0.00013835,2]
[361214358,1747347051339,-450.0,0.00013835,2]
[361214359,1747347051348,-450.0,0.00013835,2]
[361214360,1747347051358,-490.47,0.00013835,2]
[361214361,1747347051367,-450.0,0.00013835,2]
[361214362,1747347051376,-284.00373426,0.00013835,2]
[361214363,1747347051385,-450.0,0.00013835,2]
[361214364,1747347051395,-450.0,0.00013835,2]
[361214365,1747347051403,-725.39,0.00013835,2]
[361214366,1747347051413,-450.0,0.00013835,2]
[361214367,1747347051422,-450.0,0.00013835,2]
[361214368,1747347051431,-450.0,0.00013835,2]
[361214369,1747347051442,-450.0,0.00013835,2]
[361214370,1747347051451,-450.0,0.00013835,2]
[361214371,1747347051460,-450.0,0.00013835,2]
[361214372,1747347051470,-450.0,0.00013835,2]
[361214373,1747347051479,-450.0,0.00013835,2]
[361214374,1747347051488,-1855.72,0.00013835,2]
[361214375,1747347051497,-726.45,0.00013835,2]
[361214376,1747347051508,-450.0,0.00013835,2]
[361214377,1747347051517,-554.55,0.00013835,2]
[361214378,1747347051526,-461.99,0.00013835,2]
[361214379,1747347051535,-1240.92,0.00013835,2]
[361214380,1747347051545,-450.0,0.00013835,2]
[361214381,1747347051555,-3305.18,0.00013835,2]
[361214382,1747347051564,-953.72,0.00013835,2]
[361214383,1747347051573,-450.0,0.00013835,2]
[361214384,1747347051582,-770.33,0.00013835,2]
[361214385,1747347051591,-1073.94,0.00013835,2]
[361214386,1747347051600,-450.0,0.00013835,2]
[361214387,1747347051610,-3309.28,0.00013835,2]
[361214388,1747347051619,-450.0,0.00013835,2]
[361214389,1747347051629,-450.0,0.00013835,2]
[361214390,1747347051639,-450.0,0.00013835,2]
[361214391,1747347051648,-450.0,0.00013835,2]
[361214392,1747347051658,-450.0,0.00013835,2]
[361214393,1747347051667,-2104.22,0.00013835,2]
[361214394,1747347051676,-450.0,0.00013835,2]
[361214395,1747347051686,-450.0,0.00013835,2]
[361214396,1747347051696,-864.73,0.00013835,2]
[361214397,1747347051705,-532.79,0.00013835,2]
[361214398,1747347051715,-534.9,0.00013835,2]
[361214399,1747347051725,-1737.33,0.00013835,2]
[361214400,1747347051735,-450.0,0.00013835,2]
[361214401,1747347051745,-450.0,0.00013835,2]
[361214402,1747347051756,-450.0,0.00013835,2]
[361214403,1747347051767,-56.91983549,0.00013835,2]
[361214404,1747347052028,-393.08016451,0.00013835,2]
[361214405,1747347052037,-450.0,0.00013835,2]
[361214406,1747347052046,-450.0,0.00013835,2]
[361214407,1747347052055,-2581.75,0.00013835,2]
[361214408,1747347052064,-450.0,0.00013835,2]
[361214409,1747347052172,-450.0,0.00013835,2]
[361214410,1747347052181,-3323.06348783,0.00013835,2]
[361214411,1747347052290,-1088.59651217,0.00013835,2]
[361214412,1747347052300,-2924.71168742,0.00013835,2]
[361214413,1747347072810,-249.15449928,0.00012329,2]
[361214414,1747347074359,-183.84308559,0.00012329,2]
[361214415,1747347076824,-200.06862657,0.00012329,2]
[361214416,1747347078974,-285.90165442,0.00012329,2]
[361214422,1747348126430,-186.43576004,0.0001,2]
[361214423,1747348129376,-19778.0,0.0001,2]
[361214424,1747348129657,-35.56423996,0.0001,2]
[361214425,1747348146171,-243.36029325,0.00012328,2]
[361214427,1747348157135,-29.63970675,0.00012328,2]
[361214428,1747348157157,-300.0,0.00012328,2]
[361214429,1747348157179,-714.22,0.00012329,2]
[361214430,1747348157199,-2765.08,0.00012329,2]
[361214431,1747348157219,-2304.24,0.00012329,2]
[361214432,1747348157239,-1920.2,0.00012329,2]
[361214433,1747348157259,-1600.16,0.00012329,2]
[361214434,1747348157280,-1333.47,0.00012329,2]
[361214435,1747348157303,-1111.22,0.00012329,2]
[361214436,1747348157324,-926.02,0.00012329,2]
[361214437,1747348157347,-771.68,0.00012329,2]
[361214438,1747348157366,-643.07,0.00012329,2]
[361214439,1747348157386,-535.89,0.00012329,2]
[361214440,1747348157407,-446.58,0.00012329,2]
[361214441,1747348157427,-372.15,0.00012329,2]
[361214442,1747348157446,-310.12,0.00012329,2]
[361214443,1747348157466,-258.44,0.00012329,2]
[361214444,1747348157488,-215.36,0.00012329,2]
[361214445,1747348157508,-179.47,0.00012329,2]
[361214446,1747348157529,-897.37,0.00012329,2]
[361214447,1747348157550,-405.28,0.00012329,2]
[361214448,1747348157570,-337.74,0.00012329,2]
[361214449,1747348157590,-250.0,0.00012486,2]
[361214450,1747348157615,-10000.0,0.00012631,2]
[361214451,1747348157638,-307.95357878,0.00012795,2]
[361214453,1747348170115,-281.45,0.00012329,2]
[361214454,1747348170137,-159.55,0.00012795,2]
[361214508,1747348236833,-234.54,0.00012329,2]
[361214509,1747348236964,-195.45,0.00012329,2]
[361214510,1747348236974,-162.87,0.00012329,2]
[361214511,1747348236983,-814.39,0.00012329,2]
[361214512,1747348236993,-231.07589962,0.00012795,2]
[361214513,1747348237002,-317.1236158,0.00012795,2]
[361214514,1747348237012,-171.31693241,0.00013498,2]
[361214515,1747348237021,-652.61296533,0.00013579,2]
[361214516,1747348237030,-167.01410382,0.00013598,2]
[361214517,1747348237039,-151.0,0.0001369,2]
[361214518,1747348237050,-151.0,0.0001369,2]
[361214519,1747348237059,-207.4,0.0001369,2]
[361214520,1747348237069,-300.0,0.00013696,2]
[361214521,1747348237078,-300.0,0.00013696,2]
[361214522,1747348237087,-500.0,0.00013697,2]
[361214523,1747348237096,-250.0,0.00013697,2]
[361214524,1747348237105,-500.0,0.00013697,2]
[361214525,1747348237115,-500.0,0.00013697,2]
[361214526,1747348237125,-500.0,0.00013697,2]
[361214527,1747348237135,-500.0,0.00013697,2]
[361214528,1747348237145,-500.0,0.00013697,2]
[361214529,1747348237154,-500.0,0.00013697,2]
[361214530,1747348237163,-500.0,0.00013697,2]
[361214531,1747348237173,-500.0,0.00013697,2]
[361214532,1747348237182,-200.0,0.00013697,2]
[361214533,1747348237191,-500.0,0.00013697,2]
[361214534,1747348237200,-625.85826871,0.00013697,2]
[361214535,1747348237210,-500.0,0.00013697,2]
[361214536,1747348237219,-500.0,0.00013697,2]
[361214537,1747348237229,-337.45203145,0.00013697,2]
[361214538,1747348237238,-437.22721298,0.00013697,2]
[361214539,1747348237247,-201.05847454,0.00013698,2]
[361214540,1747348237256,-450.0,0.00013698,2]
[361214541,1747348237265,-450.0,0.00013698,2]
[361214542,1747348237275,-450.0,0.00013698,2]
[361214543,1747348237283,-450.0,0.00013698,2]
[361214544,1747348237293,-400.0,0.00013698,2]
[361214545,1747348237304,-450.0,0.00013698,2]
[361214546,1747348237313,-450.0,0.00013698,2]
[361214547,1747348237322,-376.65670936,0.00013698,2]
[361214548,1747348237331,-400.0,0.00013698,2]
[361214549,1747348237341,-450.0,0.00013698,2]
[361214550,1747348237350,-400.0,0.00013698,2]
[361214551,1747348237359,-400.0,0.00013698,2]
[361214552,1747348237368,-450.0,0.00013698,2]
[361214553,1747348237377,-249.15449928,0.00013698,2]
[361214554,1747348237386,-450.0,0.00013698,2]
[361214555,1747348237396,-450.0,0.00013698,2]
[361214556,1747348237405,-400.0,0.00013698,2]
[361214557,1747348237414,-450.0,0.00013698,2]
[361214558,1747348237423,-450.0,0.00013698,2]
[361214559,1747348237432,-450.0,0.00013698,2]
[361214560,1747348237441,-489.79383217,0.00013698,2]
[361214561,1747348237451,-450.0,0.00013698,2]
[361214562,1747348237460,-400.0,0.00013698,2]
[361214563,1747348237469,-988.09,0.00013698,2]
[361214564,1747348237479,-450.0,0.00013698,2]
[361214565,1747348237488,-589.21,0.00013698,2]
[361214566,1747348237497,-400.0,0.00013698,2]
[361214567,1747348237507,-450.0,0.00013698,2]
[361214568,1747348237517,-450.0,0.00013698,2]
[361214570,1747348237526,-450.0,0.00013698,2]
[361214571,1747348237535,-450.0,0.00013698,2]
[361214572,1747348237544,-450.0,0.00013698,2]
[361214573,1747348237553,-450.0,0.00013698,2]
[361214574,1747348237563,-450.0,0.00013698,2]
[361214575,1747348237572,-910.04,0.00013698,2]
[361214576,1747348237581,-450.0,0.00013698,2]
[361214577,1747348237590,-450.0,0.00013698,2]
[361214578,1747348237599,-450.0,0.00013698,2]
[361214579,1747348237608,-450.0,0.00013698,2]
[361214580,1747348237618,-450.0,0.00013698,2]
[361214581,1747348237627,-450.0,0.00013698,2]
[361214582,1747348237636,-400.0,0.00013698,2]
[361214583,1747348237645,-450.0,0.00013698,2]
[361214584,1747348237655,-450.0,0.00013698,2]
[361214585,1747348237664,-346.5559065,0.00013698,2]
[361214587,1747348237673,-450.0,0.00013698,2]
[361214588,1747348237682,-208.95,0.00013698,2]
[361214589,1747348237691,-450.0,0.00013698,2]
[361214590,1747348237701,-450.0,0.00013698,2]
[361214591,1747348237710,-450.0,0.00013698,2]
[361214592,1747348237719,-450.0,0.00013698,2]
[361214593,1747348237728,-450.0,0.00013698,2]
[361214594,1747348237738,-450.0,0.00013698,2]
[361214595,1747348237747,-450.0,0.00013698,2]
[361214597,1747348237758,-450.0,0.00013698,2]
[361214598,1747348237767,-450.0,0.00013698,2]
[361214600,1747348237776,-450.0,0.00013698,2]
[361214601,1747348237785,-400.0,0.00013698,2]
[361214603,1747348237794,-1246.32,0.00013698,2]
[361214605,1747348237804,-450.0,0.00013698,2]
[361214606,1747348237813,-450.0,0.00013698,2]
[361214608,1747348237822,-400.0,0.00013698,2]
[361214610,1747348237832,-450.0,0.00013698,2]
[361214611,1747348237840,-400.0,0.00013698,2]
[361214613,1747348237850,-450.0,0.00013698,2]
[361214614,1747348237859,-177.81475002,0.00013698,2]
[361214638,1747348240176,-421.68842109,0.00013698,2]
[361214639,1747348240185,-450.0,0.00013698,2]
[361214640,1747348240195,-400.0,0.00013698,2]
[361214641,1747348240204,-296.83078456,0.00013698,2]
[361214642,1747348240213,-450.0,0.00013698,2]
[361214643,1747348240222,-419.96026275,0.00013698,2]
[361214661,1747348354229,53582.4860535,0.00027397,120]
[361214685,1747348932791,1000.0,0.00027557,50]
[361214707,1747349232112,-208.91177213,0.00012167,2]
[361214708,1747349232133,-322.55390046,0.00012654,2]
[361214736,1747349348073,-300.0,0.00012636,2]
[361214737,1747349348095,-14281.00635549,0.00012637,2]
[361214738,1747349352098,-10618.99364451,0.00012637,2]
[361214739,1747349352119,-978.5993601,0.00012654,2]
[361214741,1747349357105,-441.0,0.00012654,2]
[361214749,1747349411414,2598.4271194,0.0002739,120]
[361214820,1747349432487,-3323.27541214,0.00012654,2]
[361214822,1747349432496,-1868.63143252,0.00012679,2]
[361214832,1747349438168,-858.7,0.00012679,2]
[361214840,1747349440567,-867.89625438,0.00012679,2]
[361214841,1747349440577,-207.4,0.00013153,2]
[361214842,1747349440586,-225.301,0.00013549,2]
[361214843,1747349440596,-210.61393122,0.00013596,2]
[361214844,1747349440605,-1000.0,0.00013597,4]
[361214845,1747349440615,-1408.66367752,0.00013598,2]
[361214847,1747349440624,-1408.66367751,0.00013632,2]
[361214848,1747349440632,-300.0,0.00013643,2]
[361214849,1747349440642,-637.22329766,0.00013644,2]
[361214851,1747349440651,-1408.66367751,0.00013667,2]
[361214852,1747349440661,-151.0,0.0001369,2]
[361214853,1747349440670,-493.42743441,0.00013697,2]
[361214854,1747349440680,-500.0,0.00013697,2]
[361214855,1747349440689,-222.173054,0.00013697,2]
[361214856,1747349440699,-500.0,0.00013697,2]
[361214857,1747349440708,-500.0,0.00013697,2]
[361214858,1747349440717,-500.0,0.00013697,2]
[361214859,1747349440727,-500.0,0.00013697,2]
[361214860,1747349440735,-500.0,0.00013697,2]
[361214861,1747349440745,-183.29786775,0.00013697,2]
[361214862,1747349440754,-500.0,0.00013697,2]
[361214863,1747349440764,-300.40684466,0.00013697,2]
[361214864,1747349440773,-500.0,0.00013697,2]
[361214865,1747349440783,-500.0,0.00013697,2]
[361214866,1747349440793,-500.0,0.00013697,2]
[361214867,1747349440803,-500.0,0.00013697,2]
[361214868,1747349440812,-171.49507805,0.00013697,2]
[361214869,1747349440823,-251.0,0.00013697,2]
[361214870,1747349440835,-77.50492195,0.00013697,2]
[361214871,1747349440844,-500.0,0.00013697,2]
[361214872,1747349440853,-122.49507805,0.00013697,2]
[361214873,1747349443409,-377.50492195,0.00013697,2]
[361214874,1747349443420,-500.0,0.00013697,2]
[361214875,1747349443430,-500.0,0.00013697,2]
[361214876,1747349443440,-291.46527479,0.00013697,2]
[361214877,1747349443451,-208.53472521,0.00013697,2]
[361214878,1747349443461,-500.0,0.00013697,2]
[361214879,1747349443471,-500.0,0.00013697,2]
[361214880,1747349443481,-436.13634051,0.00013697,2]
[361214881,1747349443492,-4.9228226,0.00013697,2]
[361214882,1747349443502,-500.0,0.00013697,2]
[361214883,1747349443512,-500.0,0.00013697,2]
[361214884,1747349443522,-500.0,0.00013697,2]
[361214885,1747349443532,-500.0,0.00013697,2]
[361214886,1747349443541,-500.0,0.00013697,2]
[361214887,1747349443551,-500.0,0.00013697,2]
[361214888,1747349443561,-500.0,0.00013697,2]
[361214889,1747349443570,-500.0,0.00013697,2]
[361214890,1747349443579,-500.0,0.00013697,2]
[361214891,1747349443589,-500.0,0.00013697,2]
[361214892,1747349443598,-500.0,0.00013697,2]
[361214893,1747349443608,-500.0,0.00013697,2]
[361214894,1747349443618,-500.0,0.00013697,2]
[361214895,1747349443627,-500.0,0.00013697,2]
[361214896,1747349443636,-425.60830266,0.00013697,2]
[361214897,1747349443646,-500.0,0.00013697,2]
[361214898,1747349443655,-500.0,0.00013697,2]
[361214899,1747349443665,-500.0,0.00013697,2]
[361214900,1747349443675,-500.0,0.00013697,2]
[361214901,1747349443685,-500.0,0.00013697,2]
[361214902,1747349443694,-500.0,0.00013697,2]
[361214903,1747349443704,-500.0,0.00013697,2]
[361214904,1747349443713,-500.0,0.00013697,2]
[361214905,1747349443722,-500.0,0.00013697,2]
[361214906,1747349443731,-500.0,0.00013697,2]
[361214907,1747349443741,-500.0,0.00013697,2]
[361214908,1747349443750,-500.0,0.00013697,2]
[361214909,1747349443761,-500.0,0.00013697,2]
[361214910,1747349443770,-500.0,0.00013697,2]
[361214911,1747349443779,-500.0,0.00013697,2]
[361214912,1747349443789,-500.0,0.00013697,2]
[361214913,1747349443798,-500.0,0.00013697,2]
[361214914,1747349443807,-500.0,0.00013697,2]
[361214915,1747349443817,-450.0,0.00013698,2]
[361214916,1747349443826,-519.01583688,0.00013698,2]
[361214917,1747349443836,-400.0,0.00013698,2]
[361214918,1747349443845,-400.0,0.00013698,2]
[361214919,1747349443855,-450.0,0.00013698,2]
[361214920,1747349443864,-450.0,0.00013698,2]
[361214921,1747349443874,-450.0,0.00013698,2]
[361214922,1747349443883,-400.0,0.00013698,2]
[361214923,1747349443892,-450.0,0.00013698,2]
[361214924,1747349443902,-400.0,0.00013698,2]
[361214925,1747349443912,-400.0,0.00013698,2]
[361214926,1747349443921,-389.90678168,0.00013698,2]
[361214927,1747349443931,-400.0,0.00013698,2]
[361214928,1747349443940,-747.31,0.00013698,2]
[361214929,1747349443950,-450.0,0.00013698,2]
[361214930,1747349443959,-400.0,0.00013698,2]
[361214931,1747349443968,-450.0,0.00013698,2]
[361214932,1747349443978,-400.0,0.00013698,2]
[361214933,1747349443987,-400.0,0.00013698,2]
[361214934,1747349443996,-450.0,0.00013698,2]
[361214935,1747349444005,-450.0,0.00013698,2]
[361214936,1747349444014,-450.0,0.00013698,2]
[361214937,1747349444024,-450.0,0.00013698,2]
[361214938,1747349444034,-450.0,0.00013698,2]
[361214939,1747349444043,-450.0,0.00013698,2]
[361214940,1747349444053,-450.0,0.00013698,2]
[361214941,1747349444062,-450.0,0.00013698,2]
[361214942,1747349444071,-450.0,0.00013698,2]
[361214943,1747349444081,-400.0,0.00013698,2]
[361214944,1747349444091,-450.0,0.00013698,2]
[361214945,1747349444099,-450.0,0.00013698,2]
[361214946,1747349444108,-400.0,0.00013698,2]
[361214947,1747349444118,-350.0,0.00013698,2]
[361214948,1747349444127,-435.81729814,0.00013698,2]
[361214949,1747349444136,-450.0,0.00013698,2]
[361214950,1747349444145,-450.0,0.00013698,2]
[361214951,1747349444155,-450.0,0.00013698,2]
[361214952,1747349444164,-450.0,0.00013698,2]
[361214953,1747349444174,-450.0,0.00013698,2]
[361214954,1747349444184,-450.0,0.00013698,2]
[361214955,1747349444193,-301.41388107,0.00013698,2]
[361214956,1747349444203,-450.0,0.00013698,2]
[361214957,1747349444212,-450.0,0.00013698,2]
[361214958,1747349444222,-450.0,0.00013698,2]
[361214959,1747349444231,-450.0,0.00013698,2]
[361214960,1747349444241,-450.0,0.00013698,2]
[361214961,1747349444250,-450.0,0.00013698,2]
[361214962,1747349444259,-450.0,0.00013698,2]
[361214963,1747349444269,-549.98058387,0.00013698,2]
[361214964,1747349444278,-450.0,0.00013698,2]
[361214965,1747349444287,-450.0,0.00013698,2]
[361214966,1747349444296,-450.0,0.00013698,2]
[361214967,1747349444306,-450.0,0.00013698,2]
[361214968,1747349444316,-450.0,0.00013698,2]
[361214969,1747349444325,-506.69418651,0.00013698,2]
[361214970,1747349444336,-450.0,0.00013698,2]
[361214971,1747349444346,-450.0,0.00013698,2]
[361214972,1747349444456,-400.0,0.00013698,2]
[361214973,1747349444471,-450.0,0.00013698,2]
[361214974,1747349444481,-450.0,0.00013698,2]
[361214975,1747349444490,-450.0,0.00013698,2]
[361214976,1747349444501,-400.0,0.00013698,2]
[361214977,1747349444510,-450.0,0.00013698,2]
[361214978,1747349444520,-589.47,0.00013698,2]
[361214979,1747349444529,-450.0,0.00013698,2]
[361214980,1747349444538,-339.43093758,0.00013698,2]
[361214981,1747349444547,-450.0,0.00013698,2]
[361214982,1747349444556,-400.0,0.00013698,2]
[361214983,1747349444566,-450.0,0.00013698,2]
[361214984,1747349444575,-252.56007693,0.00013698,2]
[361214985,1747349444584,-400.0,0.00013698,2]
[361214986,1747349444593,-450.0,0.00013698,2]
[361214987,1747349444603,-450.0,0.00013698,2]
[361214988,1747349444612,-400.0,0.00013698,2]
[361214989,1747349444622,-450.0,0.00013698,2]
[361214990,1747349444641,-450.0,0.00013698,2]
[361214991,1747349444652,-490.81,0.00013698,2]
[361214992,1747349444662,-450.0,0.00013698,2]
[361214993,1747349444672,-450.0,0.00013698,2]
[361214994,1747349444682,-1428.99,0.00013698,2]
[361214995,1747349444692,-450.0,0.00013698,2]
[361214996,1747349444702,-1357.68,0.00013698,2]
[361214997,1747349444712,-400.0,0.00013698,2]
[361214998,1747349444721,-450.0,0.00013698,2]
[361214999,1747349444731,-806.16,0.00013698,2]
[361215000,1747349444740,-450.0,0.00013698,2]
[361215001,1747349444750,-400.0,0.00013698,2]
[361215002,1747349444760,-450.0,0.00013698,2]
[361215003,1747349444769,-450.0,0.00013698,2]
[361215004,1747349444779,-450.0,0.00013698,2]
[361215005,1747349444789,-450.0,0.00013698,2]
[361215006,1747349444799,-2577.83,0.00013698,2]
[361215007,1747349444808,-400.0,0.00013698,2]
[361215008,1747349444818,-1217.31,0.00013698,2]
[361215009,1747349444828,-400.0,0.00013698,2]
[361215010,1747349444838,-450.0,0.00013698,2]
[361215011,1747349444848,-621.32,0.00013698,2]
[361215012,1747349444858,-2051.6,0.00013698,2]
[361215013,1747349444867,-638.05,0.00013698,2]
[361215014,1747349444877,-450.0,0.00013698,2]
[361215015,1747349444887,-480.88,0.00013698,2]
[361215016,1747349444897,-450.0,0.00013698,2]
[361215017,1747349444907,-400.0,0.00013698,2]